bitfinex/quotes_ETHUSD_20250904
["timestamp","ask_amount","ask_price","bid_price","bid_amount"]
[1757023715868,3.2276632,4331.7,4331.2,1.702]
[1757023716071,0.1152,4331.4,4331.3,3.889]
[1757023716279,1.348,4331.4,4331.3,3.889]
[1757023716489,3.65672235,4331.4,4331.2,1.702]
[1757023716783,3.22787565,4331.3,4330.7,0.1152]
[1757023716944,3.22788144,4331.3,4330.8,3.889]
[1757023717271,0.3137,4330.9,4330.8,3.889]
[1757023717680,1.2328,4330.9,4330.8,3.889]
[1757023718372,1.2328,4330.9,4330.8,6.1980422]
[1757023720169,1.2328,4330.9,4330.8,3.893]
[1757023720955,1.2328,4330.9,4330.8,3.894]
[1757023723211,1.2328,4330.9,4330.8,0.004]
[1757023723474,1.2328,4330.9,4330.8,3.894]
[1757023724650,1.2328,4330.9,4330.8,6.2030422]
[1757023725846,1.2328,4330.9,4330.8,3.894]
[1757023727346,1.2328,4330.9,4330.8,0.004]
[1757023727548,8.53539971,4330.9,4330.8,0.004]
[1757023727760,11.53539971,4330.9,4330.8,0.004]
[1757023729080,12.32739971,4330.9,4330.8,0.004]
[1757023729684,17.32101053,4330.9,4330.8,0.004]
[1757023729992,12.32739971,4330.9,4330.8,0.004]
[1757023735488,16.21839971,4330.9,4330.8,0.004]
[1757023737209,16.21539971,4330.9,4330.8,0.004]
[1757023746523,0.09259891,4331.0,4330.8,1.2445]
[1757023746694,0.4851,4332.0,4330.9,0.12445]
[1757023746695,5.01861082,4331.8,4330.9,0.12445]
[1757023746899,2.3086787,4331.5,4330.9,0.9377]
[1757023747102,5.30957099,4331.7,4331.4,0.3028]
[1757023747306,2.30866864,4331.6,4331.4,0.3028]
[1757023747518,2.30866864,4331.6,4331.5,0.9377]
[1757023747810,2.30866864,4331.6,4331.5,1.2405]
[1757023749819,5.30957488,4331.7,4331.5,1.2405]
[1757023749999,5.30957488,4331.7,4331.6,0.4311]
[1757023750202,5.30957488,4331.7,4331.6,0.7342]
[1757023751091,5.30957488,4331.7,4331.6,0.3031]
[1757023755218,2.30866905,4331.5,4331.4,0.4311]
[1757023755398,2.30866905,4331.5,4331.2,0.4913]
[1757023755599,2.30866905,4331.5,4331.4,0.3031]
[1757023756420,2.3087655,4331.4,4330.8,0.004]
[1757023756722,0.1152,4331.1,4330.8,0.4953]
[1757023756892,0.1152,4331.1,4331.0,0.3031]
[1757023757517,0.1152,4331.1,4331.0,0.7342]
[1757023757720,2.71798227,4331.1,4330.8,0.004]
[1757023757908,5.40271082,4331.1,4330.8,0.004]
[1757023758224,2.30894746,4331.0,4330.8,0.4351]
[1757023758595,2.30894746,4331.0,4330.9,0.3031]
[1757023759205,5.10881082,4331.1,4330.8,0.004]
[1757023759407,2.30897545,4331.0,4330.8,0.004]
[1757023760134,5.10881082,4331.1,4330.8,0.004]
[1757023760336,2.30893558,4331.0,4330.8,0.004]
[1757023760638,2.30898889,4330.9,4330.8,0.004]
[1757023762732,2.60288889,4330.9,4330.8,0.004]
[1757023762934,6.07378889,4330.9,4330.8,0.004]
[1757023763140,6.54328889,4330.9,4330.8,0.004]
[1757023764031,6.07238889,4330.9,4330.8,0.004]
[1757023764339,5.60288889,4330.9,4330.8,0.004]
[1757023764942,5.30898889,4330.9,4330.8,0.004]
[1757023765948,5.60288889,4330.9,4330.8,0.004]
[1757023767857,3.0,4330.9,4330.8,0.3071]
[1757023768143,5.30898889,4330.9,4330.8,0.3071]
[1757023770152,6.07378889,4330.9,4330.8,0.004]
[1757023770445,5.60288889,4330.9,4330.8,0.004]
[1757023772145,6.54328889,4330.9,4330.8,0.004]
[1757023773336,5.60288889,4330.9,4330.8,0.004]
[1757023773619,5.30898889,4330.9,4330.8,0.004]
[1757023779153,5.61968889,4330.9,4330.8,0.004]
[1757023780146,13.20405903,4330.9,4330.8,0.004]
[1757023781041,6.10125549,4330.4,4330.3,0.004]
[1757023781245,15.98952563,4330.4,4330.3,0.004]
[1757023781447,17.20852563,4330.4,4330.3,0.004]
[1757023782557,0.792,4329.9,4329.8,0.025]
[1757023782734,15.87459229,4329.9,4329.8,0.025]
[1757023783061,2.31000231,4329.0,4328.8,0.029]
[1757023783353,2.42520231,4329.0,4328.8,0.029]
[1757023784852,2.42520231,4329.0,4328.9,0.31180001]
[1757023785042,2.42520231,4329.0,4328.9,0.75880001]
[1757023785346,3.889,4329.1,4328.9,1.24660001]
[1757023785347,0.1152,4329.1,4328.9,1.24660001]
[1757023785542,0.1152,4329.1,4329.0,0.447]
[1757023785778,2.31000231,4329.0,4328.9,1.24660001]
[1757023786556,2.42514942,4329.1,4328.9,0.75880001]
[1757023786852,2.31000231,4329.0,4328.9,0.75880001]
[1757023788042,2.42515874,4329.1,4328.9,0.75880001]
[1757023788248,0.1152,4329.1,4328.9,0.75880001]
[1757023788561,0.1152,4329.1,4329.0,0.9348]
[1757023789057,0.1152,4329.1,4329.0,1.2466]
[1757023793860,0.1152,4329.1,4329.0,0.7588]
[1757023794053,2.42514895,4329.1,4329.0,0.7588]
[1757023794431,2.42514895,4329.1,4329.0,0.3118]
[1757023794632,2.31000231,4329.0,4328.9,1e-08]
[1757023794830,2.76710231,4329.0,4328.9,1e-08]
[1757023795061,3.52900231,4329.0,4328.9,1e-08]
[1757023795575,2.62070231,4329.0,4328.9,1e-08]
[1757023796230,0.1152,4329.1,4328.9,1e-08]
[1757023796231,0.1152,4329.1,4328.9,0.31180001]
[1757023796437,0.1152,4329.1,4329.0,0.9348]
[1757023796854,0.1152,4329.1,4329.0,1.2466]
[1757023797445,1.702,4330.4,4329.2,2.30989095]
[1757023797751,0.1152,4329.6,4329.3,0.9348]
[1757023797958,0.1152,4329.6,4329.5,0.3118]
[1757023798457,0.1152,4329.6,4329.5,1.2466]
[1757023800370,0.025,4330.8,4329.5,1.2466]
[1757023800535,0.1152,4330.2,4329.6,2.30963718]
[1757023800858,0.1152,4330.2,4330.1,0.3118]
[1757023801229,0.4259,4330.2,4329.8,3.89]
[1757023801433,2.42482503,4329.8,4329.4,1.702]
[1757023801636,0.1152,4329.8,4329.7,0.3118]
[1757023802332,2.4247755,4329.8,4329.7,0.3118]
[1757023805377,0.1152,4329.8,4329.7,0.3118]
[1757023805537,0.1152,4329.8,4329.7,1.2466]
[1757023806443,0.1152,4329.8,4329.7,0.7588]
[1757023807464,2.4247755,4329.8,4329.7,0.3118]
[1757023807970,0.1152,4329.8,4329.7,0.3118]
[1757023808292,2.4247755,4329.8,4329.7,0.3118]
[1757023808484,2.30962884,4329.7,4329.4,1.702]
[1757023808778,2.42493553,4329.5,4329.4,1.702]
[1757023809069,2.71823553,4329.5,4329.4,1.702]
[1757023809784,6.21503553,4329.5,4329.4,1.702]
[1757023809947,6.64343553,4329.5,4329.4,1.702]
[1757023810344,6.21503553,4329.5,4329.4,1.702]
[1757023810583,5.71823553,4329.5,4329.4,1.702]
[1757023812300,3.1152,4329.5,4329.4,2.0172]
[1757023812660,3.1152,4329.5,4329.4,1.702]
[1757023812896,3.4085,4329.5,4329.4,1.702]
[1757023813890,5.71823553,4329.5,4329.4,1.702]
[1757023814395,3.4085,4329.5,4329.4,1.702]
[1757023814580,5.71823553,4329.5,4329.4,1.702]
[1757023814982,3.4085,4329.5,4329.4,1.702]
[1757023815497,0.1152,4329.5,4329.4,5.26918888]
[1757023815844,0.001,4330.2,4329.4,3.87521889]
[1757023815969,0.001,4330.2,4330.1,2.30941548]
[1757023816164,0.001,4330.2,4330.1,6.19841548]
[1757023816477,0.001,4330.2,4330.1,7.45581548]
[1757023818378,0.001,4330.2,4330.1,8.55906772]
[1757023820485,0.001,4330.2,4330.1,2.36065224]
[1757023820686,0.001,4330.2,4330.1,7.57101548]
[1757023821493,0.001,4330.2,4330.1,3.68201548]
[1757023821692,0.001,4330.2,4330.1,7.57001548]
[1757023822192,0.001,4330.2,4330.1,3.68201548]
[1757023822410,0.001,4330.2,4330.1,7.57001548]
[1757023826726,0.2943,4330.2,4330.1,0.1152]
[1757023827028,0.2943,4330.2,4329.8,0.004]
[1757023827210,0.9252,4330.1,4329.8,0.004]
[1757023827392,0.1152,4330.0,4329.8,0.004]
[1757023827597,0.2933,4329.9,4329.8,0.004]
[1757023827835,1.2185,4329.9,4329.8,3.892]
[1757023828490,0.7901,4329.9,4329.8,3.892]
[1757023828690,0.2933,4329.9,4329.8,3.892]
[1757023828889,0.1152,4330.0,4329.8,4.2072]
[1757023829737,0.1152,4330.0,4329.9,3.888]
[1757023830746,0.1152,4330.0,4329.9,4.2032]
[1757023831045,0.1152,4330.0,4329.9,4.6672]
[1757023832547,0.1152,4330.0,4329.9,4.2032]
[1757023834048,0.4085,4330.0,4329.9,3.888]
[1757023834854,0.4085,4330.0,4329.8,0.004]
[1757023834855,2.30952215,4329.9,4329.8,0.004]
[1757023835055,2.73792215,4329.9,4329.8,0.004]
[1757023835257,3.52802215,4329.9,4329.8,0.004]
[1757023840853,7.32002215,4329.9,4329.8,0.004]
[1757023841452,0.792,4329.5,4329.3,0.004]
[1757023841763,11.21686966,4329.4,4329.3,0.004]
[1757023841963,11.51076966,4329.4,4329.3,0.004]
[1757023842168,12.46936966,4329.4,4329.3,0.004]
[1757023847062,6.51088888,4329.4,4329.3,0.004]
[1757023847649,7.46948888,4329.4,4329.3,0.004]
[1757023849676,10.88868888,4329.4,4329.3,0.004]
[1757023850554,11.35748888,4329.4,4329.3,0.004]
[1757023854886,6.21698888,4329.4,4329.3,0.2893]
[1757023855086,15.10486966,4329.4,4329.3,0.2893]
[1757023855290,15.10486966,4329.4,4329.3,0.004]
[1757023855595,15.39876966,4329.4,4329.3,0.004]
[1757023856158,16.35736966,4329.4,4329.3,0.004]
[1757023856958,11.35748888,4329.4,4329.3,0.004]
[1757023857160,15.88856966,4329.4,4329.3,0.004]
[1757023857387,15.39876966,4329.4,4329.3,0.004]
[1757023859672,16.35736966,4329.4,4329.3,0.004]
[1757023860188,15.88856966,4329.4,4329.3,0.004]
[1757023860692,15.39876966,4329.4,4329.3,0.004]
[1757023862091,15.88856966,4329.4,4329.3,0.004]
[1757023862561,16.35736966,4329.4,4329.3,0.004]
[1757023863693,15.88856966,4329.4,4329.3,0.004]
[1757023864557,15.39876966,4329.4,4329.3,0.004]
[1757023864761,15.10486966,4329.4,4329.3,0.2893]
[1757023864963,16.35736966,4329.4,4329.3,0.004]
[1757023865495,15.39876966,4329.4,4329.3,0.004]
[1757023865959,15.10486966,4329.4,4329.3,0.2893]
[1757023866367,3.0,4329.4,4329.3,1.2518]
[1757023869694,5.30978888,4329.4,4329.3,1.2518]
[1757023869995,3.0,4329.4,4329.3,1.2518]
[1757023870999,5.30978888,4329.4,4329.3,1.2518]
[1757023872297,5.30978888,4329.4,4329.3,0.2893]
[1757023874370,3.0,4329.4,4329.3,1.2353]
[1757023874569,0.001,4329.8,4329.3,2.9383]
[1757023874791,0.001,4329.8,4329.6,2.30963468]
[1757023874992,0.001,4329.8,4329.5,4.99988078]
[1757023875175,0.001,4329.8,4329.7,2.59952884]
[1757023875577,0.001,4329.8,4329.7,3.54552884]
[1757023875913,0.001,4329.8,4329.7,5.04273949]
[1757023876206,0.001,4329.8,4329.7,5.01964321]
[1757023876369,0.001,4329.8,4329.7,5.13484321]
[1757023880322,0.001,4329.8,4329.7,10.13472399]
[1757023883035,0.001,4329.8,4329.7,13.13472399]
[1757023883523,0.001,4329.8,4329.7,8.13484321]
[1757023883728,0.001,4329.8,4329.7,13.13472399]
[1757023884233,0.001,4329.8,4329.7,17.01972399]
[1757023885000,0.001,4329.8,4329.7,5.13484321]
[1757023885212,0.001,4329.8,4329.7,0.1152]
[1757023885411,0.2952,4329.8,4329.7,4.0002]
[1757023885613,0.2952,4329.8,4329.3,1.707]
[1757023885797,0.4631,4329.7,4329.4,3.885]
[1757023886130,0.7649,4329.8,4329.4,6.19478303]
[1757023886131,0.001,4329.8,4329.4,6.19478303]
[1757023887031,0.001,4329.8,4329.5,2.30973047]
[1757023887237,0.001,4329.8,4329.4,6.19477611]
[1757023887441,0.001,4329.8,4329.4,3.885]
[1757023887616,0.9338,4329.8,4329.5,3.884]
[1757023887816,0.2942,4329.6,4329.5,3.884]
[1757023888216,0.001,4329.8,4329.5,3.884]
[1757023889640,0.2942,4329.6,4329.5,3.884]
[1757023889842,0.001,4329.8,4329.5,9.17378078]
[1757023890034,0.001,4329.8,4329.7,2.42482884]
[1757023890924,0.001,4329.8,4329.7,6.59872884]
[1757023891344,0.001,4329.8,4329.7,3.16282884]
[1757023891525,0.001,4329.8,4329.7,7.04682884]
[1757023892842,0.001,4329.8,4329.7,6.59872884]
[1757023893342,0.001,4329.8,4329.7,7.04682884]
[1757023894545,0.001,4329.8,4329.7,6.59872884]
[1757023894847,0.001,4329.8,4329.7,6.30882884]
[1757023895715,0.2952,4329.8,4329.7,3.884]
[1757023895957,0.7583,4329.8,4329.7,3.884]
[1757023896240,0.2952,4329.8,4329.7,3.884]
[1757023897122,1.228,4329.8,4329.6,0.004]
[1757023897323,2.30962884,4329.7,4329.6,0.004]
[1757023897647,3.53758802,4329.8,4329.6,3.888]
[1757023897820,3.53662884,4329.7,4329.6,3.888]
[1757023898643,0.2942,4329.7,4329.6,3.888]
[1757023899328,1.214,4329.7,4329.6,3.888]
[1757023899647,0.7819,4329.7,4329.6,3.888]
[1757023899832,1.214,4329.7,4329.6,3.888]
[1757023900513,0.001,4329.8,4329.6,4.1829]
[1757023900718,0.001,4329.8,4329.6,4.642]
[1757023901149,0.001,4329.8,4329.6,4.1829]
[1757023901818,0.3062,4329.7,4329.6,0.004]
[1757023902018,1.226,4329.7,4329.6,3.888]
[1757023902420,0.3062,4329.7,4329.6,3.888]
[1757023903548,0.001,4329.8,4329.6,3.888]
[1757023904446,1.226,4329.7,4329.6,3.888]
[1757023904848,0.7939,4329.7,4329.6,3.888]
[1757023905220,1.226,4329.7,4329.6,3.888]
[1757023905729,0.3062,4329.7,4329.6,3.888]
[1757023905941,1.226,4329.7,4329.6,3.888]
[1757023908625,1.226,4329.7,4329.6,0.004]
[1757023908626,0.7939,4329.7,4329.6,0.004]
[1757023908855,4.32762884,4329.7,4329.6,0.004]
[1757023909159,7.32762884,4329.7,4329.6,0.004]
[1757023916065,2.30978888,4329.4,4329.3,0.004]
[1757023916449,2.61598888,4329.4,4329.3,0.004]
[1757023916644,3.65098888,4329.4,4329.3,0.004]
[1757023919136,7.44298888,4329.4,4329.3,0.004]
[1757023919335,7.44298888,4329.4,4329.2,1e-08]
[1757023919336,2.30984223,4329.3,4329.2,1e-08]
[1757023919543,6.10184223,4329.3,4329.2,1e-08]
[1757023919836,7.32784223,4329.3,4329.2,1e-08]
[1757023920036,7.42048833,4329.3,4329.2,1e-08]
[1757023922451,6.98838833,4329.3,4329.2,1e-08]
[1757023922674,10.93198833,4329.3,4329.2,1e-08]
[1757023922964,11.41968833,4329.3,4329.2,1e-08]
[1757023924869,10.98758833,4329.3,4329.2,1e-08]
[1757023925954,6.10189559,4329.2,4329.1,0.004]
[1757023926340,6.40809559,4329.2,4329.1,0.004]
[1757023927070,7.32789559,4329.2,4329.1,0.004]
[1757023927473,6.40809559,4329.2,4329.1,0.004]
[1757023927773,7.32789559,4329.2,4329.1,0.004]
[1757023928481,6.40809559,4329.2,4329.1,0.004]
[1757023928977,6.10189559,4329.2,4329.1,0.3126]
[1757023929375,6.10189559,4329.2,4329.1,0.7437]
[1757023934873,6.10189559,4329.2,4329.1,0.3126]
[1757023935059,6.10189559,4329.2,4329.1,0.004]
[1757023936187,6.10189559,4329.2,4329.1,0.3126]
[1757023936545,6.10189559,4329.2,4329.1,0.004]
[1757023939580,3.10200231,4329.0,4328.8,0.029]
[1757023939750,3.21720231,4329.0,4328.8,0.029]
[1757023939955,3.21720231,4329.0,4328.9,0.73970001]
[1757023940379,3.21720231,4329.0,4328.9,1.19820001]
[1757023945983,3.21720231,4329.0,4328.9,0.73970001]
[1757023946292,3.21720231,4329.0,4328.9,0.30860001]
[1757023947695,3.21720231,4329.0,4328.9,1.19820001]
[1757023947859,0.1152,4329.0,4328.9,1.19820001]
[1757023948055,0.001,4329.2,4328.9,6.90672001]
[1757023948361,0.001,4329.2,4329.0,0.8896]
[1757023948993,0.001,4329.2,4329.1,1.1982]
[1757023953377,0.001,4329.2,4329.1,4.02030146]
[1757023956786,0.001,4329.2,4329.1,9.13681231]
[1757023956985,0.001,4329.2,4329.1,9.25201231]
[1757023958775,0.001,4329.2,4329.1,9.13681231]
[1757023958976,0.001,4329.2,4329.1,9.25201231]
[1757023959177,0.001,4329.2,4329.1,4.25070146]
[1757023960114,0.001,4329.2,4329.1,8.13170146]
[1757023963387,0.001,4329.2,4329.1,8.13070146]
[1757023963598,0.001,4329.2,4329.1,8.13470146]
[1757023966417,0.001,4329.2,4329.1,1.94475251]
[1757023966594,0.001,4329.2,4329.1,6.61774895]
[1757023969026,0.001,4329.2,4329.1,3.884]
[1757023969317,0.7877,4329.2,4329.1,3.884]
[1757023969496,1.2206,4329.2,4329.1,3.884]
[1757023969906,1.3358,4329.2,4329.1,3.884]
[1757023970699,1.3358,4329.2,4329.1,0.004]
[1757023970904,1.3358,4329.2,4329.1,3.884]
[1757023970905,3.64569559,4329.2,4329.1,3.884]
[1757023972510,7.43769559,4329.2,4329.1,0.004]
[1757023972914,2.31000231,4329.0,4328.9,1e-08]
[1757023973104,10.31131316,4329.0,4328.9,1e-08]
[1757023973422,11.53091316,4329.0,4328.9,1e-08]
[1757023974798,6.52960231,4329.0,4328.9,1e-08]
[1757023976724,6.09670231,4329.0,4328.9,1e-08]
[1757023977023,7.32160231,4329.0,4328.9,1e-08]
[1757023977799,6.88870231,4329.0,4328.9,1e-08]
[1757023978003,7.32160231,4329.0,4328.9,1e-08]
[1757023978919,6.88870231,4329.0,4328.9,1e-08]
[1757023979634,6.41570231,4329.0,4328.9,1e-08]
[1757023980020,7.32160231,4329.0,4328.9,1e-08]
[1757023980527,6.10200231,4329.0,4328.9,1e-08]
[1757023981430,6.88870231,4329.0,4328.9,1e-08]
[1757023981730,0.1152,4329.0,4328.9,0.74130001]
[1757023981902,0.1152,4329.0,4328.9,1.68673001]
[1757023982097,0.1152,4329.0,4328.9,3.99678568]
[1757023982399,0.1162,4329.2,4328.9,1.68673001]
[1757023982631,0.1162,4329.2,4329.0,1.703]
[1757023982843,0.1162,4329.2,4329.0,2.1437]
[1757023983000,0.1162,4329.2,4329.1,1.2209]
[1757023983526,0.001,4329.2,4329.1,1.2209]
[1757023983744,0.001,4329.2,4329.1,1.91547709]
[1757023984037,0.001,4329.2,4329.1,4.97817375]
[1757023984502,0.001,4329.2,4329.1,5.09337375]
[1757023988131,0.001,4329.2,4329.1,13.9736846]
[1757023989332,0.001,4329.2,4329.1,4.65267375]
[1757023989502,0.001,4329.2,4329.1,8.52147375]
[1757023989702,0.001,4329.2,4329.1,1.8631248]
[1757023989903,0.001,4329.2,4329.1,4.98937709]
[1757023990315,0.001,4329.2,4329.1,7.29932604]
[1757023990937,0.001,4329.2,4329.1,7.76872604]
[1757023991135,0.001,4329.2,4329.1,3.88972604]
[1757023991307,0.001,4329.2,4329.1,7.76872604]
[1757023991939,0.001,4329.2,4329.1,4.87417709]
[1757023992112,0.001,4329.2,4329.1,3.879]
[1757023992317,0.001,4329.2,4329.1,4.3456]
[1757023992728,0.001,4329.2,4329.1,4.6562]
[1757023994425,0.001,4329.2,4329.1,5.1256]
[1757023996326,0.001,4329.2,4329.1,4.6562]
[1757023996539,0.2892,4329.2,4329.1,3.879]
[1757023997941,0.001,4329.2,4329.1,3.879]
[1757023998552,0.001,4329.2,4329.1,4.1886]
[1757023998752,0.001,4329.2,4329.1,0.3106]
[1757023999051,0.001,4329.2,4329.1,4.1886]
[1757023999251,0.001,4329.2,4329.1,0.3106]
[1757023999550,0.001,4329.2,4329.1,4.1886]
[1757023999954,0.001,4329.2,4329.1,0.3106]
[1757024000251,0.001,4329.2,4329.1,4.1886]
[1757024000446,0.001,4329.2,4329.1,3.878]
[1757024001347,0.001,4329.2,4329.1,4.1886]
[1757024001651,0.001,4329.2,4329.1,5.1111]
[1757024002149,0.001,4329.2,4329.1,8.53220379]
[1757024002846,0.001,4329.2,4329.1,8.64740379]
[1757024006127,0.001,4329.2,4329.1,6.33745484]
[1757024006327,0.001,4329.2,4329.1,8.64740379]
[1757024006751,0.001,4329.2,4329.1,4.30000379]
[1757024007051,0.001,4329.2,4329.1,7.41330379]
[1757024007254,0.001,4329.2,4329.1,8.19330379]
[1757024007559,0.001,4329.2,4329.1,5.41395484]
[1757024007757,0.001,4329.2,4329.1,7.72390379]
[1757024007961,0.001,4329.2,4329.1,8.19330379]
[1757024008652,0.001,4329.2,4329.1,8.64640379]
[1757024012361,0.001,4329.2,4329.1,11.64640379]
[1757024014344,0.001,4329.2,4329.1,11.65040379]
[1757024014732,0.001,4329.2,4329.1,16.65171464]
[1757024017484,0.001,4329.2,4329.1,17.53361561]
[1757024022358,0.001,4329.2,4329.1,6.85090379]
[1757024022559,0.001,4329.2,4329.1,10.41630379]
[1757024023062,0.001,4329.2,4329.1,10.71130379]
[1757024024754,0.2953,4329.2,4329.1,10.41630379]
[1757024025177,1.222,4329.2,4329.1,6.42034895]
[1757024025371,1.222,4329.2,4329.1,6.30514895]
[1757024026578,0.7372,4329.2,4329.1,6.30514895]
[1757024026784,0.2953,4329.2,4329.1,6.30514895]
[1757024028055,0.001,4329.2,4329.1,6.60014895]
[1757024028288,0.001,4329.2,4329.1,9.24493851]
[1757024028489,0.001,4329.2,4329.1,12.24493851]
[1757024028679,0.001,4329.2,4329.1,12.33752349]
[1757024029068,0.001,4329.2,4329.1,18.22073531]
[1757024031575,0.2953,4329.2,4329.1,11.11872349]
[1757024033383,0.001,4329.2,4329.1,11.11872349]
[1757024034999,1.222,4329.2,4329.1,0.1192]
[1757024035198,1.222,4329.2,4329.1,3.9942]
[1757024035901,1.222,4329.2,4329.1,0.004]
[1757024036079,1.222,4329.2,4329.1,3.879]
[1757024038178,0.7801,4329.2,4329.1,3.879]
[1757024038482,0.2953,4329.2,4329.1,3.879]
[1757024038681,1.222,4329.2,4329.1,3.879]
[1757024038881,0.7801,4329.2,4329.1,3.879]
[1757024039107,1.222,4329.2,4329.1,3.879]
[1757024040203,0.001,4329.2,4329.1,6.59914895]
[1757024040500,0.001,4329.2,4329.1,6.30414895]
[1757024040681,0.2953,4329.2,4329.1,6.30414895]
[1757024041614,0.7801,4329.2,4329.1,0.1192]
[1757024041812,1.222,4329.2,4329.1,3.879]
[1757024042287,1.222,4329.2,4329.1,6.18894895]
[1757024043018,0.2953,4329.2,4329.1,6.18894895]
[1757024043232,0.2953,4329.2,4329.1,3.879]
[1757024043436,1.222,4329.2,4329.1,3.879]
[1757024044809,1.222,4329.2,4329.1,2.31394895]
[1757024045015,1.222,4329.2,4329.1,6.18894895]
[1757024045184,1.222,4329.2,4329.1,2.31394895]
[1757024045519,1.222,4329.2,4329.1,6.18894895]
[1757024046484,1.222,4329.2,4329.1,3.879]
[1757024047026,0.7801,4329.2,4329.1,3.879]
[1757024047188,1.222,4329.2,4329.1,0.004]
[1757024047385,1.222,4329.2,4329.1,3.879]
[1757024048424,1.222,4329.2,4329.1,0.004]
[1757024048637,1.222,4329.2,4329.1,3.879]
[1757024049421,0.7801,4329.2,4329.1,3.879]
[1757024049620,0.2953,4329.2,4329.1,3.879]
[1757024049998,0.7706,4329.2,4329.1,3.879]
[1757024050525,0.001,4329.2,4329.1,3.879]
[1757024050924,0.3156,4329.2,4329.1,3.879]
[1757024052636,1.2341,4329.2,4329.1,0.004]
[1757024052800,1.2341,4329.2,4329.1,3.879]
[1757024053823,1.2341,4329.2,4329.1,3.878]
[1757024060087,0.001,4329.2,4329.1,4.1695]
[1757024060325,0.001,4329.2,4329.1,8.15976895]
[1757024061253,0.001,4329.2,4329.1,8.27596895]
[1757024061594,0.001,4329.2,4329.1,8.15976895]
[1757024062621,0.001,4329.2,4329.1,8.04456895]
[1757024062821,0.001,4329.2,4329.1,8.15976895]
[1757024064415,0.001,4329.2,4329.1,14.04298077]
[1757024067410,0.001,4329.2,4329.1,14.13556812]
[1757024068031,0.001,4329.2,4329.1,17.13556812]
[1757024068651,0.001,4329.2,4329.1,7.3783563]
[1757024069125,0.001,4329.2,4329.1,10.7858563]
[1757024069499,0.001,4329.2,4329.1,10.3344563]
[1757024070118,0.001,4329.2,4329.1,11.2513563]
[1757024070629,0.001,4329.2,4329.1,6.9128563]
[1757024070931,0.001,4329.2,4329.1,10.0429563]
[1757024071119,0.001,4329.2,4329.1,10.3344563]
[1757024071321,0.001,4329.2,4329.1,10.7858563]
[1757024072127,0.001,4329.2,4329.1,11.2513563]
[1757024073008,0.001,4329.2,4329.1,10.7999563]
[1757024073207,0.001,4329.2,4329.1,11.2513563]
[1757024073431,0.001,4329.2,4329.1,10.3344563]
[1757024073929,0.001,4329.2,4329.1,7.3344563]
[1757024074229,0.001,4329.2,4329.1,3.4614563]
[1757024074535,0.7909,4329.2,4329.1,6.30214895]
[1757024074740,1.2341,4329.2,4329.1,6.30214895]
[1757024075110,1.2341,4329.2,4329.1,0.1192]
[1757024075311,1.2341,4329.2,4329.1,3.877]
[1757024076730,1.2341,4329.2,4329.1,0.004]
[1757024077034,1.2341,4329.2,4329.1,3.877]
[1757024077620,1.2341,4329.2,4329.1,0.004]
[1757024077820,3.54399559,4329.2,4329.1,0.004]
[1757024078015,3.54399559,4329.2,4329.1,3.876]
[1757024079843,3.54399559,4329.2,4329.1,0.004]
[1757024080058,3.54399559,4329.2,4329.1,3.876]
[1757024080355,1.2513,4329.2,4329.1,3.876]
[1757024080655,3.56119559,4329.2,4329.1,3.877]
[1757024084431,1.2513,4329.2,4329.1,3.877]
[1757024084935,3.56119559,4329.2,4329.1,3.877]
[1757024088854,1.2513,4329.2,4329.1,3.877]
[1757024089262,3.56119559,4329.2,4329.1,3.877]
[1757024089842,1.2513,4329.2,4329.1,3.877]
[1757024090163,3.56119559,4329.2,4329.1,3.877]
[1757024090832,3.07959559,4329.2,4329.1,3.877]
[1757024091031,3.54099559,4329.2,4329.1,3.877]
[1757024091359,3.54099559,4329.2,4329.1,3.876]
[1757024094360,4.33299559,4329.2,4329.1,0.004]
[1757024094550,4.33299559,4329.2,4329.1,3.876]
[1757024096570,6.87259559,4329.2,4329.1,3.876]
[1757024096869,7.33299559,4329.2,4329.1,3.876]
[1757024100264,6.87259559,4329.2,4329.1,3.876]
[1757024100852,7.33299559,4329.2,4329.1,3.876]
[1757024101872,11.8753044,4329.2,4329.1,3.876]
[1757024102081,12.3357044,4329.2,4329.1,3.876]
[1757024102558,7.33299559,4329.2,4329.1,3.876]
[1757024103161,7.33299559,4329.2,4329.1,0.004]
[1757024103474,2.31000231,4329.0,4328.9,1e-08]
[1757024103680,2.42520231,4329.0,4328.9,1e-08]
[1757024103846,3.65530231,4329.0,4328.9,1e-08]
[1757024104047,3.74794283,4329.0,4328.9,1e-08]
[1757024104570,8.65801112,4329.0,4328.9,1e-08]
[1757024105089,0.1152,4329.0,4328.9,1e-08]
[1757024105286,0.1152,4329.0,4328.9,5.10440001]
[1757024107688,2.42520231,4329.0,4328.9,5.10440001]
[1757024107894,0.1152,4329.0,4328.9,5.10440001]
[1757024109379,0.001,4329.2,4328.9,5.78884001]
[1757024109593,0.001,4329.2,4329.0,0.9206]
[1757024109789,0.001,4329.2,4329.1,3.871]
[1757024110108,0.001,4329.2,4329.1,5.1079]
[1757024110680,0.001,4329.2,4329.1,3.871]
[1757024110872,2.31089559,4329.2,4329.1,3.871]
[1757024111398,0.001,4329.2,4329.1,4.1873]
[1757024111791,0.001,4329.2,4329.1,4.6574]
[1757024113305,2.31089559,4329.2,4329.1,4.6574]